bitfinex/quotes_SOLUSD_20260314
["timestamp","ask_amount","ask_price","bid_price","bid_amount"]
[1773466448258,6.1,88.01,87.99,3.65187594]
[1773466448473,18.27333519,88.015,88.004,0.5]
[1773466448474,6.73589639,88.015,88.004,0.5]
[1773466448672,11.36182879,88.014,87.992,0.5]
[1773466449770,6.73589639,88.015,87.994,0.5]
[1773466450062,18.09761451,88.015,87.994,0.5]
[1773466455772,6.73589639,88.015,87.996,0.5]
[1773466457573,18.09771252,88.015,87.996,0.5]
[1773466457789,4.82477569,88.009,87.95,3.66073107]
[1773466458084,3.66073107,87.99,87.951,0.5]
[1773466458470,3.66073107,87.98,87.951,0.5]
[1773466459974,11.36634878,87.979,87.951,0.5]
[1773466460197,11.36634878,87.979,87.952,0.5]
[1773466462586,3.66073107,87.99,87.954,0.5]
[1773466464696,11.36505699,87.989,87.955,11.36945028]
[1773466464885,11.36505699,87.989,87.961,0.5]
[1773466469297,3.66073107,87.98,87.954,0.5]
[1773466469804,11.36634878,87.979,87.954,0.5]
[1773466472297,39.78222074,87.979,87.954,0.5]
[1773466474481,3.66073107,87.97,87.936,0.5]
[1773466475205,3.66073107,87.96,87.936,0.5]
[1773466475401,3.66073107,87.97,87.936,0.5]
[1773466475581,39.78674305,87.969,87.936,0.5]
[1773466477800,0.5,87.97,87.951,0.5]
[1773466478007,11.36764087,87.969,87.951,0.5]
[1773466481211,0.5,87.97,87.953,0.5]
[1773466481712,0.5,87.97,87.952,11.36983809]
[1773466481713,28.41154122,87.993,87.961,0.5]
[1773466488500,28.41154122,87.993,87.962,0.5]
[1773466495612,3.66073107,87.99,87.953,11.36967148]
[1773466495804,3.66073107,87.99,87.954,0.5]
[1773466496622,28.41154122,87.993,87.954,0.5]
[1773466498329,28.41154122,87.993,87.955,11.36945028]
[1773466498533,28.41154122,87.993,87.956,0.5]
[1773466499310,6.1,87.99,87.956,0.5]
[1773466500526,11.36415649,87.996,87.971,0.5]
[1773466502615,3.66073107,88.0,87.971,0.5]
[1773466504330,11.36376549,87.999,87.971,0.5]
[1773466504630,11.36376549,87.999,87.95,7.24]
[1773466504631,3.66073107,87.99,87.955,0.5]
[1773466506842,44.60247516,87.989,87.955,0.5]
[1773466508619,39.77769947,87.989,87.955,0.5]
[1773466508816,39.77769947,87.989,87.957,0.5]
[1773466509136,39.77769947,87.989,87.93,3.66073107]
[1773466509137,0.49002078,87.969,87.93,3.66073107]
[1773466511225,3.66073107,87.97,87.933,0.48756149]
[1773466511226,0.49002078,87.967,87.933,0.48756149]
[1773466515136,0.49002078,87.965,87.933,0.48756149]
[1773466515439,0.49002078,87.965,87.935,0.48756149]
[1773466516233,11.36802855,87.966,87.935,0.48756149]
[1773466517830,11.36802855,87.966,87.941,0.48756149]
[1773466520150,11.85804933,87.966,87.942,11.37113097]
[1773466520357,11.85804933,87.966,87.943,0.48756149]
[1773466520658,11.36802855,87.966,87.943,0.48756149]
[1773466521549,11.83393001,87.976,87.951,0.48065841]
[1773466521938,0.46707333,87.975,87.951,0.48065841]
[1773466522346,0.46707333,87.975,87.952,0.48065841]
[1773466522651,11.36699479,87.974,87.952,0.48065841]
[1773466524852,0.46707333,87.982,87.952,0.48065841]
[1773466526055,0.46707333,87.982,87.954,0.48065841]
[1773466526258,11.36570285,87.984,87.954,0.48065841]
[1773466526957,0.46707333,87.984,87.956,0.48065841]
[1773466530368,0.46707333,87.984,87.95,3.66520972]
[1773466530369,11.83290536,87.983,87.958,0.48065841]
[1773466532361,0.46707333,87.98,87.958,0.48065841]
[1773466532558,0.46707333,87.98,87.951,0.48065841]
[1773466532559,0.46707333,87.979,87.951,0.48065841]
[1773466532757,0.46707333,87.979,87.941,0.48065841]
[1773466534963,0.46707333,87.977,87.941,0.48065841]
[1773466535357,0.46707333,87.977,87.943,0.48065841]
[1773466537563,11.36673638,87.976,87.943,0.48065841]
[1773466537748,0.46707333,87.975,87.943,0.48065841]
[1773466540063,11.36699479,87.974,87.943,0.48065841]
[1773466540266,0.46707333,87.973,87.943,0.48065841]
[1773466540456,3.66520972,87.97,87.943,0.48065841]
[1773466540762,0.46707333,87.969,87.943,0.48065841]
[1773466544590,0.46707333,87.968,87.943,0.48065841]
[1773466548269,0.46114221,87.966,87.943,0.48065841]
[1773466548468,0.46114221,87.966,87.931,0.47030632]
[1773466548769,0.46114221,87.964,87.931,0.47030632]
[1773466549169,0.46114221,87.964,87.933,0.47030632]
[1773466549375,0.46114221,87.969,87.941,0.47030632]
[1773466550574,0.46114221,87.967,87.941,0.47030632]
[1773466555274,0.46114221,87.967,87.931,11.37250034]
[1773466555457,0.48439761,87.965,87.932,0.49430461]
[1773466556463,44.61287563,87.966,87.932,0.49430461]
[1773466556464,0.48439761,87.963,87.932,0.49430461]
[1773466557060,0.48439761,87.963,87.933,11.37229481]
[1773466557268,11.36828702,87.964,87.934,0.49430461]
[1773466557581,11.36828702,87.964,87.941,0.49430461]
[1773466563065,11.85268463,87.964,87.941,0.49430461]
[1773466563381,0.48439761,87.963,87.941,0.49430461]
[1773466563581,0.48439761,87.949,87.927,7.24]
[1773466564187,0.48439761,87.947,87.927,7.24]
[1773466564486,0.48439761,87.947,87.927,18.61300583]
[1773466565587,0.48439761,87.947,87.928,0.49430461]
[1773466567186,0.48439761,87.945,87.917,0.49430461]
[1773466567393,0.48439761,87.945,87.916,11.37449383]
[1773466567394,0.48439761,87.945,87.921,0.49430461]
[1773466569592,11.37087237,87.944,87.921,0.49430461]
[1773466570980,11.85526998,87.944,87.921,0.49430461]
[1773466571667,0.48439761,87.943,87.921,0.49430461]
[1773466573687,11.85540236,87.943,87.921,0.49430461]
[1773466576183,0.48439761,87.942,87.921,0.49430461]
[1773466577403,0.48439761,87.939,87.911,0.49430461]
[1773466578202,0.48439761,87.928,87.9,3.66740307]
[1773466578381,0.48439761,87.928,87.901,0.49430461]
[1773466579098,3.66740307,87.92,87.893,0.49430461]
[1773466579303,0.48439761,87.919,87.893,0.49430461]
[1773466579895,0.48439761,87.909,87.888,0.49430461]
[1773466580106,0.48439761,87.899,87.88,0.1]
[1773466581094,0.48439761,87.899,87.87,15.1477393]
[1773466581095,0.45986859,87.897,87.87,0.1]
[1773466581296,0.45986859,87.907,87.881,0.47523599]
[1773466581899,11.37554972,87.908,87.881,0.47523599]
[1773466582286,0.45986859,87.907,87.881,0.47523599]
[1773466582485,0.45986859,87.905,87.88,3.66740307]
[1773466583287,0.45986859,87.905,87.881,0.47523599]
[1773466583487,0.45986859,87.919,87.882,0.47523599]
[1773466583688,0.45986859,87.919,87.891,0.47523599]
[1773466584295,0.45986859,87.919,87.901,0.47523599]
[1773466584498,0.45986859,87.927,87.901,11.85161963]
[1773466584815,0.45986859,87.935,87.911,0.47523599]
[1773466585807,0.45986859,87.954,87.921,0.47523599]
[1773466586010,0.45986859,87.954,87.931,0.47523599]
[1773466586194,0.45986859,87.96,87.931,0.47523599]
[1773466586388,4.82477569,87.976,87.941,0.47523599]
[1773466586590,0.45986859,87.989,87.961,0.47523599]
[1773466586801,0.45986859,87.989,87.951,0.47523599]
[1773466587307,39.76685262,88.013,87.971,0.47523599]
[1773466587508,3.66740307,88.01,87.971,0.47523599]
[1773466587692,3.66740307,88.0,87.971,0.47523599]
[1773466589209,4.82477569,87.989,87.945,0.47523599]
[1773466589414,0.43443602,87.979,87.945,0.47523599]
[1773466589597,0.43443602,87.986,87.951,0.47523599]
[1773466592528,3.66740307,87.99,87.95,3.66740307]
[1773466592529,0.43443602,87.984,87.953,0.47523599]
[1773466592901,3.66740307,87.98,87.953,0.47523599]
[1773466593511,4.10183909,87.99,87.953,0.47523599]
[1773466593708,11.36505699,87.989,87.961,0.47523599]
[1773466594423,0.43443602,87.988,87.961,0.47523599]
[1773466596916,0.43443602,87.979,87.952,0.47523599]
[1773466597806,0.43443602,87.986,87.952,0.47523599]
[1773466598007,0.43443602,87.986,87.951,11.36996736]
[1773466598705,0.43443602,87.986,87.937,28.42923596]
[1773466598706,0.43443602,87.959,87.927,0.47523599]
[1773466598918,0.43443602,87.959,87.925,28.43311337]
[1773466598919,0.43443602,87.959,87.929,0.47523599]
[1773466600217,0.43443602,87.959,87.931,0.47523599]
[1773466601014,0.43443602,87.976,87.941,0.47523599]
[1773466602309,11.80143688,87.974,87.943,0.47523599]
[1773466603209,11.36621959,87.98,87.951,0.47523599]
[1773466603410,0.43443602,87.979,87.951,0.47523599]
[1773466604538,0.43443602,87.979,87.952,11.36983809]
[1773466604714,11.36647798,87.978,87.953,0.47523599]
[1773466604914,0.43443602,87.979,87.953,0.47523599]
[1773466605114,11.36637685,87.979,87.95,3.66740307]
[1773466605316,0.43443602,87.978,87.95,15.03737601]
[1773466605735,0.43443602,87.978,87.938,0.47523599]
[1773466605916,39.78224881,87.979,87.924,7.24]
[1773466605917,0.23443602,87.959,87.924,7.24]
[1773466606117,0.23443602,87.959,87.921,0.47523599]
[1773466606616,0.23443602,87.957,87.92,43.47632026]
[1773466606821,0.23443602,87.957,87.921,0.49612349]
[1773466607938,0.23443602,87.955,87.923,0.49612349]
[1773466608342,15.03621711,87.96,87.923,0.49612349]
[1773466608519,0.23443602,87.959,87.923,0.49612349]
[1773466608720,0.23443602,87.959,87.93,3.66740307]
[1773466608926,0.23443602,87.959,87.923,0.49612349]
[1773466610742,0.23443602,87.959,87.931,0.49612349]
[1773466610926,11.36779856,87.968,87.931,0.49612349]
[1773466611421,0.23443602,87.967,87.931,0.49612349]
[1773466611627,11.36707292,87.974,87.941,0.48761968]
[1773466611940,0.23443602,87.973,87.941,0.48761968]
[1773466612952,11.36643499,87.979,87.951,0.48761968]
[1773466613443,0.23443602,87.978,87.951,0.48761968]
[1773466616845,0.23443602,87.976,87.933,0.48761968]
[1773466617051,0.23443602,87.976,87.941,0.48761968]
[1773466618753,11.36314634,88.004,87.971,0.48761968]
[1773466619057,0.23443602,88.008,87.973,0.48761968]
[1773466619435,0.23443602,87.999,87.973,0.48761968]
[1773466619674,0.23443602,87.999,87.967,0.48761968]
[1773466620547,11.36389463,87.998,87.967,0.48761968]
[1773466620853,0.23443602,87.989,87.967,0.48761968]
[1773466621055,0.23443602,87.989,87.968,11.36777009]
[1773466621356,0.23443602,87.997,87.971,0.48761968]
[1773466621563,11.36304681,88.005,87.971,0.48761968]
[1773466621729,11.36304681,88.005,87.981,0.48761968]
[1773466622132,11.59748283,88.005,87.981,0.48761968]
[1773466622552,11.36304681,88.005,87.981,0.48761968]
[1773466623858,0.23443602,88.01,87.981,0.48761968]
[1773466624156,0.23443602,88.01,87.983,0.48761968]
[1773466624535,3.90183909,88.01,87.983,0.48761968]
[1773466624949,0.23443602,88.009,87.983,0.48761968]
[1773466625355,0.23443602,88.009,87.975,0.48761968]
[1773466625557,3.66740307,87.98,87.951,0.48761968]
[1773466625758,4.82477569,88.004,87.948,7.24]
[1773466625759,3.66740307,87.97,87.948,7.24]
[1773466626059,3.66740307,87.96,87.931,0.48761968]
[1773466626942,0.23443602,87.949,87.924,7.24]
[1773466627454,0.23443602,87.939,87.914,0.48761968]
[1773466627955,0.23443602,87.939,87.915,11.37462321]
[1773466628149,3.66740307,87.94,87.916,0.48761968]
[1773466629462,3.66740307,87.94,87.918,0.48761968]
[1773466630642,3.66740307,87.94,87.917,11.37436445]
[1773466630643,3.90183909,87.94,87.917,11.37436445]
[1773466631058,3.66740307,87.94,87.917,11.37436445]
[1773466631359,11.37151889,87.939,87.912,11.37501137]
[1773466631739,11.37151889,87.939,87.913,0.48761968]
[1773466632136,0.23443602,87.938,87.913,0.48761968]
[1773466632461,0.23443602,87.938,87.907,11.37561723]
[1773466632758,3.66740307,87.93,87.907,11.37561723]
[1773466633053,3.66740307,87.92,87.902,11.37627212]
[1773466633258,0.23443602,87.929,87.902,11.37627212]
[1773466634363,0.23443602,87.929,87.902,0.48761968]
[1773466634565,11.37294149,87.928,87.902,0.48761968]
[1773466634861,0.23443602,87.927,87.902,0.48761968]
[1773466637167,3.66740307,87.92,87.902,0.48761968]
[1773466638265,3.66740307,87.91,87.89,7.24]
[1773466638761,0.23443602,87.913,87.89,7.24]
[1773466639644,3.66985715,87.91,87.89,7.24]
[1773466639866,3.66985715,87.91,87.889,0.48761968]
[1773466641157,11.60854173,87.919,87.891,0.47131541]
[1773466641351,0.23443602,87.918,87.891,0.47131541]
[1773466641875,0.23443602,87.942,87.891,0.47131541]
[1773466642183,3.66985715,87.94,87.911,0.47131541]
[1773466642665,0.23443602,87.948,87.911,0.47131541]
[1773466642870,3.66985715,87.95,87.911,0.47131541]
[1773466643167,11.37022592,87.949,87.911,0.47131541]
[1773466643543,11.37022592,87.949,87.913,0.47131541]
[1773466645973,11.60466194,87.949,87.915,0.47131541]
[1773466646353,0.23443602,87.989,87.941,0.47131541]
[1773466646670,0.23443602,87.986,87.951,0.47131541]
[1773466647049,4.82477569,87.989,87.951,0.47131541]
[1773466647371,3.90429317,87.99,87.951,0.47131541]
[1773466648078,0.23443602,87.988,87.953,0.47131541]
[1773466649077,0.23443602,87.973,87.945,0.47131541]
[1773466649376,3.66985715,87.98,87.945,0.47131541]
[1773466649552,11.36505699,87.989,87.951,0.47131541]
[1773466650559,11.59949301,87.989,87.953,0.47131541]
[1773466652578,11.36428206,87.995,87.963,0.47131541]
[1773466652877,0.23443602,88.004,87.971,0.47131541]
[1773466654184,3.66985715,88.0,87.971,0.47131541]
[1773466655781,11.36376549,87.999,87.971,0.47131541]
[1773466656358,11.36376549,87.999,87.973,0.47131541]
[1773466660356,11.36324898,88.003,87.973,0.47131541]
[1773466661578,0.24719308,88.003,87.973,0.47131541]
[1773466661775,0.24719308,88.003,87.975,0.47131541]
[1773466662481,3.66985715,88.0,87.975,0.47131541]
[1773466662676,0.24719308,88.003,87.975,0.47131541]
[1773466663555,11.3633781,88.002,87.975,0.47131541]
[1773466664180,11.3633781,88.002,87.977,0.47131541]
[1773466667865,11.36287908,88.006,87.979,0.47386954]
[1773466668583,0.25763479,88.005,87.979,0.47386954]
[1773466668786,0.25895934,87.999,87.971,0.47386954]
[1773466670282,11.36389463,87.998,87.971,0.47386954]
[1773466670485,0.26026785,87.997,87.971,0.47386954]
[1773466672394,11.36415291,87.996,87.971,0.47386954]
[1773466672575,0.26345915,87.995,87.971,0.47386954]
[1773466675694,11.3644112,87.994,87.971,0.47386954]
[1773466678372,16.87078231,88.008,87.971,0.47386954]
[1773466678574,3.66985715,88.01,87.97,3.66985715]
[1773466678575,11.36308407,88.005,87.972,11.36725321]
[1773466678775,0.27195379,88.004,87.973,0.48826215]
[1773466679989,0.27311674,87.999,87.973,0.48826215]
[1773466680495,0.27311674,87.997,87.973,0.48826215]
[1773466683580,3.66985715,87.99,87.973,0.48826215]
[1773466686085,11.36403628,87.997,87.975,0.48826215]
[1773466694894,4.82477569,88.005,87.971,0.48826215]
[1773466695094,3.66985715,87.99,87.971,0.48826215]
[1773466695307,4.1770948,87.99,87.971,0.48826215]
[1773466697196,0.50723765,87.99,87.971,0.48826215]
[1773466697709,11.36505699,87.989,87.971,0.48826215]
[1773466697895,11.87229464,87.989,87.971,0.48826215]
[1773466700405,3.66985715,88.0,87.971,0.48826215]
[1773466700406,0.50723765,87.994,87.971,0.48826215]
[1773466701705,0.51256927,87.992,87.971,0.48826215]
[1773466705698,0.51256927,87.99,87.971,0.48826215]
[1773466708016,11.36479867,87.991,87.971,0.48826215]
[1773466708197,0.51256927,87.995,87.973,0.47815872]
[1773466708698,3.66292807,88.01,87.973,0.47815872]
[1773466709021,11.3629616,88.006,87.973,0.47815872]
[1773466711117,11.3629616,88.006,87.975,0.47815872]
[1773466712516,0.51256927,88.005,87.977,0.47815872]
[1773466712705,0.51256927,87.999,87.977,0.47815872]
[1773466714618,0.51256927,87.999,87.978,11.36647798]
[1773466714816,0.51256927,87.999,87.979,0.47815872]
[1773466715921,0.51256927,87.985,87.941,0.47815872]
[1773466716099,0.51256927,87.979,87.941,0.47815872]
[1773466717503,0.51256927,87.979,87.943,0.47815872]
[1773466717504,11.36647798,87.978,87.943,0.47815872]
[1773466717816,11.36593861,87.983,87.943,0.47815872]
[1773466718006,11.36593861,87.983,87.951,0.47815872]
[1773466721117,11.36593861,87.983,87.952,11.36983809]
[1773466721423,11.36593861,87.983,87.953,0.47815872]
[1773466722223,11.36593861,87.983,87.955,0.47815872]
[1773466722407,11.87850788,87.983,87.955,0.47815872]
[1773466730224,11.87850788,87.983,87.957,0.48827546]
[1773466731420,11.87850788,87.983,87.959,0.51598073]
[1773466731727,0.49875148,87.982,87.959,0.51598073]
[1773466735707,11.3660904,87.981,87.959,0.51598073]
[1773466735909,0.49875148,87.985,87.961,0.51598073]
[1773466740532,0.49875148,87.985,87.963,0.51598073]
[1773466741110,11.36553362,87.986,87.963,0.51598073]
[1773466741711,11.36553362,87.986,87.965,0.51598073]
[1773466744634,0.49875148,87.995,87.967,0.51598073]
[1773466746938,0.49875148,88.002,87.971,0.51598073]
[1773466749535,0.49875148,88.0,87.973,0.51598073]
[1773466749747,0.49875148,87.999,87.973,0.51598073]
[1773466751743,0.49875148,87.999,87.975,0.51598073]
[1773466753444,0.49875148,87.997,87.975,0.51598073]
[1773466753642,0.49875148,87.997,87.97,11.36750619]
[1773466753643,11.36415291,87.996,87.971,0.51598073]
[1773466753831,0.49875148,87.995,87.971,0.51598073]
[1773466754032,4.16167955,88.0,87.973,0.51598073]
[1773466754234,0.49875148,88.0,87.973,0.51598073]
[1773466755653,0.49875148,87.999,87.973,0.51598073]
[1773466756648,0.49875148,87.999,87.974,11.36699479]
[1773466756853,0.49875148,87.999,87.975,0.51598073]
[1773466759852,0.49875148,87.999,87.977,0.51598073]
[1773466760443,0.49875148,87.997,87.968,0.51598073]
[1773466761750,0.47155493,87.995,87.97,0.4920742]
[1773466764745,0.47155493,87.989,87.97,0.4920742]
[1773466765140,0.47155493,87.989,87.971,11.36738243]
[1773466765347,0.47155493,88.009,87.972,0.4920742]
[1773466765550,3.66318448,88.0,87.972,0.4920742]
[1773466765755,0.47155493,87.999,87.972,0.4920742]
[1773466766452,0.47155493,88.009,87.974,0.4920742]
[1773466768854,0.47155493,88.007,87.976,0.4920742]
[1773466769245,0.47155493,88.007,87.981,0.4920742]
[1773466770252,18.09772285,88.015,87.981,0.4920742]
[1773466770253,0.47155493,88.014,87.981,0.4920742]
[1773466771858,0.47155493,88.014,87.983,0.4920742]
[1773466772960,0.47155493,88.014,87.984,11.36570285]
[1773466773159,0.47155493,88.014,87.985,0.4920742]
[1773466775056,0.47155493,88.012,87.987,0.4920742]
[1773466777167,0.47155493,88.012,87.989,0.4920742]
[1773466777952,0.47155493,88.023,87.989,0.4920742]
[1773466778166,7.24,88.031,88.001,0.4920742]
[1773466778167,0.47155493,88.03,88.001,0.4920742]
[1773466778465,0.47155493,88.029,88.001,0.4920742]
[1773466779462,0.47155493,88.029,88.003,0.4920742]
[1773466779964,7.24,88.051,88.002,11.3633781]
[1773466779965,0.47155493,88.054,88.021,0.4920742]
[1773466780165,0.47155493,88.048,88.021,0.4920742]
[1773466780363,0.47155493,88.047,88.021,0.4920742]
[1773466781371,0.47155493,88.039,88.013,0.4920742]
[1773466783050,0.47155493,88.048,88.013,0.4920742]
[1773466783255,0.47155493,88.048,88.021,0.4920742]
[1773466783467,0.47155493,88.048,88.023,0.4920742]
[1773466784369,0.47155493,88.048,88.025,0.4920742]
[1773466785745,0.2,88.05,88.02,3.66318448]
[1773466785746,0.2,88.05,88.027,0.4920742]
[1773466786356,2.0,111.0,88.026,11.36027991]
[1773466786357,0.47155493,88.106,88.041,0.4920742]
[1773466786681,0.47155493,88.099,88.061,0.4920742]
[1773466786971,0.4618731,88.079,88.043,0.47105866]
[1773466787960,0.4618731,88.079,88.045,0.47105866]
[1773466788974,0.4618731,88.079,88.051,0.47105866]
[1773466791264,0.4618731,88.079,88.052,11.84052407]
[1773466791577,0.4618731,88.079,87.791,44.34736674]
[1773466791578,0.49544406,88.069,88.043,7.24]
[1773466791774,0.49544406,88.069,88.04,0.48359862]
[1773466792860,0.49544406,88.069,88.041,11.84194302]
[1773466793059,0.49544406,88.069,88.042,0.48359862]
[1773466797168,0.49544406,88.069,88.044,0.48359862]
[1773466798683,0.49544406,88.069,88.045,11.35782838]
[1773466798881,0.49544406,88.069,88.046,0.48359862]
[1773466799279,0.49544406,88.069,88.051,0.48359862]
[1773466799488,0.49544406,88.084,88.051,0.48359862]
[1773466800065,5.2,88.08,88.051,0.48359862]
[1773466800264,0.49544406,88.079,88.053,0.48359862]
[1773466802388,0.49544406,88.075,88.042,0.48359862]
[1773466802591,0.49544406,88.049,88.013,0.48359862]
[1773466802793,0.49544406,88.039,88.007,0.48359862]
[1773466802968,0.49544406,88.039,88.008,11.36260339]
[1773466803168,0.49544406,88.039,88.008,11.84620201]
[1773466803484,0.49544406,88.039,88.009,0.48359862]
[1773466803986,0.49544406,88.029,88.001,0.48359862]
[1773466804172,0.49544406,88.029,88.002,0.48359862]
[1773466804693,0.49544406,88.029,87.999,1.79042047]
[1773466804886,0.49544406,88.027,87.999,11.36373017]
[1773466805267,0.49544406,88.019,87.997,7.24]
[1773466806069,0.49544406,88.019,87.994,11.36435915]
[1773466807172,0.49544406,88.019,87.994,0.48359862]
[1773466808592,0.49544406,88.017,87.986,11.3654445]
[1773466808889,0.49544406,88.017,87.987,0.48359862]
[1773466809484,0.49544406,88.017,87.989,0.48359862]
[1773466810295,5.3,88.01,87.989,0.48359862]
[1773466810492,0.49544406,88.012,87.991,0.48359862]
[1773466811375,0.49544406,88.019,87.991,0.48359862]
[1773466812890,0.49544406,88.032,88.011,0.48359862]
[1773466815085,0.49544406,88.032,88.013,0.48359862]
[1773466817096,0.49544406,88.039,88.015,0.48359862]
[1773466819302,0.49544406,88.039,88.017,0.48359862]
[1773466820384,0.49544406,88.039,88.019,0.48359862]
[1773466822907,0.49544406,88.039,88.02,11.3610543]
[1773466823086,0.49544406,88.039,88.019,0.48359862]
[1773466824695,0.47926204,88.037,88.012,0.48989769]
[1773466828807,0.47926204,88.035,88.012,0.48989769]
[1773466828999,0.47926204,88.035,88.007,0.48989769]
[1773466829188,0.47926204,88.029,88.006,7.24]
[1773466829828,0.47926204,88.029,88.007,11.3627325]
[1773466831111,0.47926204,88.027,88.006,7.24]
[1773466834112,0.47926204,88.025,88.006,7.24]
[1773466834418,0.47926204,88.025,88.008,0.48989769]
[1773466835208,2.6,88.02,88.008,0.48989769]
[1773466837911,16.6,88.041,88.011,0.48989769]
[1773466838427,17.07926204,88.041,88.011,0.48989769]
[1773466839100,17.07926204,88.041,88.013,0.48989769]
[1773466839503,17.07926204,88.041,88.015,0.48989769]
[1773466840698,17.07926204,88.041,88.016,11.36157062]
[1773466840907,17.07926204,88.041,88.017,0.48989769]
[1773466841721,16.6,88.041,88.017,0.48989769]
[1773466841910,16.39082458,88.041,88.018,0.48989769]
[1773466842110,16.18164916,88.041,88.019,0.48989769]
[1773466842310,16.18208809,88.049,88.017,0.48989769]
[1773466842505,3.6586486,88.05,88.019,0.48989769]
[1773466842707,3.30691357,88.05,88.019,0.14276467]
[1773466842918,3.6586486,88.05,88.018,11.36131245]
[1773466843309,3.6586486,88.04,88.018,11.36131245]
[1773466843718,3.6586486,88.05,88.018,11.36131245]
[1773466844425,11.3573124,88.049,88.018,11.36131245]
[1773466845922,3.6586486,88.04,88.018,11.36131245]
[1773466846812,4.82477569,88.048,88.013,11.36195789]
[1773466851125,0.52373388,88.047,88.013,11.36195789]
[1773466851327,28.3890895,88.062,88.013,11.36195789]
[1773466851328,0.52373388,88.039,88.013,11.36195789]
[1773466851516,0.52373388,88.035,88.006,11.36277037]
[1773466854919,0.7,88.03,88.006,11.36277037]
[1773466859857,0.52373388,88.029,88.002,12.72717863]
[1773466860532,0.52373388,88.019,87.984,1.48122086]
[1773466861424,0.52373388,88.019,87.988,11.36518616]
[1773466867930,0.52373388,88.019,87.991,11.36479867]
[1773466870456,0.52373388,88.015,87.991,11.36479867]
[1773466872531,0.52373388,88.024,87.991,39.77679535]
[1773466872740,0.52373388,88.027,88.0,3.6586486]
[1773466874136,0.7,88.03,88.01,3.6586486]
[1773466875161,0.7,88.03,88.011,11.36221608]
[1773466877742,0.7,88.03,88.0,32.06765392]
[1773466879856,0.7,88.03,88.0,43.43129028]
[1773466885144,0.52373388,88.05,88.02,3.6586486]
[1773466885566,0.52373388,88.05,88.02,3.65787485]
[1773466886551,0.52373388,88.05,88.021,11.36092523]
[1773466888354,0.52373388,88.05,88.021,39.76323831]
[1773466889065,0.52373388,88.05,88.03,3.65787485]
[1773466890070,0.52373388,88.05,88.031,11.35963467]
[1773466890565,0.52373388,88.055,88.031,11.35963467]
[1773466901567,0.52373388,88.055,88.03,3.65787485]
[1773466904900,0.52373388,88.055,88.031,11.35963467]
[1773466913480,0.52373388,88.037,87.99,15.02280268]
[1773466913668,3.65787485,88.03,87.992,0.4833117]
[1773466914780,4.82477569,88.029,87.992,0.4833117]
[1773466914970,7.24,88.061,87.783,104.7]
[1773466914971,4.82477569,88.019,87.993,11.36454036]
[1773466915788,0.49554791,88.018,87.993,11.36454036]
[1773466917898,0.49554791,88.018,87.993,11.84785206]
[1773466918984,0.49554791,88.018,87.995,11.36428206]
[1773466919776,0.49554791,88.018,87.995,11.84759376]
[1773466922301,0.49554791,88.018,87.996,0.4833117]
[1773466924980,0.49554791,88.018,87.997,11.36402377]
[1773466926367,0.49554791,88.018,87.996,0.4833117]
[1773466926368,0.49554791,88.007,87.97,3.65787485]
[1773466926586,0.49554791,87.999,87.967,0.4833117]
[1773466927193,0.49554791,87.999,87.971,0.4833117]
[1773466928389,0.49554791,87.999,87.973,0.4833117]
[1773466930277,0.49554791,87.997,87.974,11.36699479]
[1773466931781,0.49554791,87.997,87.974,11.85030649]
[1773466932193,0.49554791,87.997,87.976,11.36673638]
[1773466932382,0.49554791,87.997,87.977,0.4833117]
[1773466933881,0.49554791,87.997,87.978,11.36647798]
[1773466938993,0.49554791,87.989,87.971,11.36738243]
[1773466939599,0.49554791,87.989,87.972,0.4833117]
[1773466940891,0.49554791,87.989,87.973,11.367124]
[1773466942197,0.4842403,87.995,87.974,0.48256965]
[1773466942429,0.4842403,87.989,87.974,0.48256965]
[1773466942611,0.4842403,87.989,87.962,0.48256965]
[1773466944995,0.4842403,87.989,87.964,0.48256965]
[1773466945201,3.65787485,88.0,87.964,0.48256965]
[1773466945398,3.65787485,88.0,87.963,39.78945692]
[1773466945399,3.65787485,88.0,87.971,0.48256965]
[1773466945604,3.66289799,88.0,87.971,0.48256965]
[1773466947107,0.4842403,87.999,87.972,39.78538625]
[1773466947288,0.4842403,87.999,87.973,0.48256965]
[1773466947484,3.66289799,88.0,87.973,0.48256965]
[1773466947705,0.4842403,88.004,87.973,0.48256965]
[1773466948003,3.66289799,88.0,87.973,0.48256965]
[1773466948189,0.4842403,87.999,87.973,0.48256965]
[1773466950304,0.4842403,87.999,87.974,11.36699479]
[1773466950802,0.4842403,87.999,87.975,0.48256965]
[1773466951985,0.4842403,87.999,87.976,11.84930603]
[1773466953396,0.4842403,87.999,87.977,0.48256965]
[1773466956908,0.4842403,88.029,87.991,0.48256965]
[1773466957206,0.4842403,88.028,87.991,0.48256965]
[1773466958792,0.4842403,88.028,88.001,11.36350723]
[1773466958990,0.4842403,88.028,88.001,11.84607688]
[1773466959212,0.4842403,88.027,88.002,0.48256965]
[1773466961598,0.4842403,88.027,88.004,0.48256965]
[1773466962333,2.0,112.0,88.005,0.48256965]
[1773466962517,2.0,112.0,88.011,0.48256965]